[Event "Budapest IM-B ONE WEEK Feb 2024"]
[Site "Budapest"]
[Date "2024.03.01"]
[Round "7.1"]
[White "Velikic, Adela"]
[Black "Skytte, Rasmus"]
[Result "1/2-1/2"]
[ECO "D35"]
[WhiteElo "2266"]
[BlackElo "2342"]
[Annotator "TA"]
[PlyCount "66"]
[EventDate "2024.02.25"]
[EventType "tourn"]
[EventCountry "HUN"]
[SourceTitle "playchess.com"]
[Source "ChessBase"]
[SourceQuality "1"]
[TimeControl "5400+30"]

{[%evp 12,66,25,24,20,20,27,16,17,17,18,0,62,67,60,0,0,0,0,-38,-51,-52,-40,-79,-80,-80,-66,-129,-118,-116,-121,-128,-143,-545,-89,-98,-146,-145,-153,-161,-149,-140,-146,-127,-30,-15,0,0,0,0,0,0,0,0,0,0,0]} 1. c4 {[%emt 0:00:06]} e6 {[%emt 0:00:08]} 2. Nc3 {[%emt 0:00:07]} d5 {[%emt 0:00:06]} 3. d4 {[%emt 0:00:07]} Nf6 {[%emt 0:00:16]} 4. cxd5 {[%emt 0:00:10]} exd5 {[%emt 0:00:09]} 5. Bg5 {[%emt 0:00:07][%cal Bc1g5,Bg5h4,Bh4g3][%mdl 32]} Bb4 {[%emt 0:00:24]} 6. e3 {[%emt 0:00:20]} h6 {[%emt 0:00:12]} 7. Bh4 {[%emt 0:00:08]} g5 {[%emt 0:00:20]} 8. Bg3 {[%emt 0:00:05]} Ne4 {[%emt 0:00:43]} 9. Nge2 {[%emt 0:00:17]} h5 {[%emt 0:01:14]} 10. h4 {[%emt 0:00:51]} Bg4 {[%emt 0:00:15]} 11. Qb3 {[%emt 0:43:06]} Nxg3 {[%emt 0:00:44]} (11... Nc6 $11) 12. Nxg3 $14 {[%emt 0:01:37]} Nc6 {[%emt 0:00:52]} 13. hxg5 {[%emt 0:03:29]} (13. Bb5 $14 gxh4 14. Qxb4 hxg3 15. O-O) 13... Qxg5 $11 {[%emt 0:01:57]} 14. Bb5 {[%emt 0:03:39]} Bxc3+ {[%emt 0:02:48]} 15. bxc3 {[%emt 0:06:32]} O-O-O {[%emt 0:09:45]} 16. Bxc6 {[%emt 0:06:14]} bxc6 {[%emt 0:00:07]} 17. Qa4 {[%emt 0:02:53]} Kd7 {[%emt 0:03:58]} 18. c4 {[%emt 0:04:17]} (18. Qxa7 $2 h4 19. Nf1 Qf5 $19) 18... h4 {[%emt 0:07:12]} 19. Nf1 {[%emt 0:04:22]} (19. Ne2 $1 $15) 19... h3 $36 {[%emt 0:03:38][%mdl 2048] Schwarz ist am Drücker.} 20. gxh3 {[%emt 0:09:07] Und Rg1 würde nun gewinnen.} Bf3 {[%emt 0:00:34]} (20... Bxh3 $6 21. Ng3 $11) (20... Rxh3 $6 21. Rxh3 Bxh3 22. Ng3 $11) 21. Rh2 {[%emt 0:01:04]} Rb8 $1 {[%emt 0:04:17][%mdl 1024] Schwarz hat starke Kompensation.} 22. Kd2 $2 {[%emt 0:05:38][%mdl 8192] Weiss ist schwach auf den weissen Feldern} (22. Qc2 $17 {war die entscheidende Verteidigung.}) 22... Rb2+ $2 {[%emt 0:05:33]} (22... dxc4 $19 {ist viel giftiger.} 23. Kc1 Qd5) 23. Kc3 {[%emt 0:00:23]} Rhb8 {[%emt 0:01:52]} 24. Nd2 {[%emt 0:00:42] [#]} Qf5 {[%emt 0:09:48]} 25. Nxf3 {[%emt 0:01:16]} Qxf3 {[%emt 0:00:47]} 26. Qd1 {[%emt 0:01:13]} Re2 {[%emt 0:02:41]} 27. Rb1 {[%emt 0:04:14] [#] Pariert a5.} Rxb1 {[%emt 0:03:13]} (27... Rxf2 $2 28. Qxf3 Rxf3 29. Rxb8 $18) ({Vorzuziehen ist} 27... Rb6 $1 $17 {Droht ...dxc4 und aus.} 28. cxd5 cxd5 (28... Rxf2 29. Qxf3 Rxf3 30. dxc6+ Rxc6+ 31. Kd3 $14) 29. Rxb6 Rxe3+ (29... axb6 30. Qa4+ Kd6 31. Qa3+ c5 32. dxc5+ bxc5 33. Qa6+ Kc7 34. Qa5+ Kd6 35. Qb6+ Kd7 36. Qb7+ Kd6 37. Qb6+ Kd7 38. Qb7+ Kd8 39. Qb6+ Kd7 $11) 30. fxe3 Qxd1) 28. Qxb1 $11 {[%emt 0:00:01]} dxc4 $17 {[%emt 0:00:27] KQR-KQR. Die Stellung ist ausgeglichen.} 29. Qg1 $1 {[%emt 0:01:23]} f5 {[%emt 0:04:45]} 30. Qg7+ {[%emt 0:00:31]} Kc8 {[%emt 0:00:36]} 31. Qg2 {[%emt 0:01:26] Das Brett brennt.} Rc2+ $1 {[%emt 0:11:09]} 32. Kxc2 {[%emt 0:00:19]} Qe2+ {[%emt 0:00:05]} 33. Kc1 {[%emt 0:00:28]} Qe1+ $1 {[%emt 0:00:40] Schwarz hatte alle Gewinnchancen.   Gewichteter Fehlerwert: Weiß=0.29 (präzise) /Schwarz=0.28 (präzise) .  Verlustzug:     	Weiß=1     	---        Gewinn verpasst:   	---       	Schwarz=1     Fehler:       	Weiß=2     	Schwarz=2     Ungenau:       	Weiß=2     	---        OK:         	Weiß=7     	Schwarz=13    Bester:       	Weiß=4     	Schwarz=2     Stark:        	Weiß=1     	Schwarz=3} 1/2-1/2

[Event "Budapest IM-B ONE WEEK Feb 2024"]
[Site "Budapest"]
[Date "2024.03.01"]
[Round "7.3"]
[White "Poysti, Nathanael"]
[Black "Golis, Wiktor"]
[Result "0-1"]
[ECO "A13"]
[WhiteElo "2163"]
[BlackElo "2123"]
[Annotator "RC"]
[PlyCount "60"]
[EventDate "2024.02.25"]
[EventType "tourn"]
[EventCountry "HUN"]
[SourceTitle "playchess.com"]
[Source "ChessBase"]
[SourceQuality "1"]
[TimeControl "5400+30"]

1. c4 {[%emt 0:00:30]} e6 {[%emt 0:00:11]} 2. g3 {[%emt 0:00:00]} d5 {[%emt 0:00:04]} 3. Bg2 {[%emt 0:00:00]} dxc4 {[%emt 0:00:06]} 4. Qa4+ {[%emt 0:00:00]} Qd7 {[%emt 0:00:14]} 5. Qxc4 {[%emt 0:00:16]} c5 {[%emt 0:00:08]} 6. Nf3 {[%emt 0:07:31]} Nc6 {[%emt 0:00:09]} 7. O-O {[%emt 0:11:11]} Nf6 {[%emt 0:00:11]} 8. d4 {[%emt 0:13:05]} cxd4 {[%emt 0:00:35]} 9. Rd1 {[%emt 0:00:29]} Be7 {[%emt 0:00:30]} 10. Nxd4 {[%emt 0:01:28]} e5 {[%emt 0:00:25]} 11. Bxc6 {[%emt 0:00:11]} bxc6 {[%emt 0:00:05]} 12. Qxc6 {[%emt 0:00:14]} exd4 {[%emt 0:00:05]} 13. Qxa8 {[%emt 0:00:15]} O-O {[%emt 0:00:06]} 14. Qg2 {[%emt 0:08:13]} Bb7 {[%emt 0:00:08]} 15. f3 {[%emt 0:01:32]} Re8 {[%emt 0:00:09]} 16. Rd3 {[%emt 0:12:56]} Ba6 {[%emt 0:18:57]} 17. Nd2 {[%emt 0:00:25]} Nd5 {[%emt 0:16:53]} 18. Ne4 {[%emt 0:06:41]} Bxd3 {[%emt 0:02:15]} 19. exd3 {[%emt 0:00:01]} f5 {[%emt 0:00:09]} 20. Qh3 {[%emt 0:16:29]} Qc8 {[%emt 0:09:19]} 21. Nf2 {[%emt 0:00:39]} Bf6 {[%emt 0:06:56]} 22. Bf4 {[%emt 0:01:43]} g6 {[%emt 0:18:56]} 23. Qf1 {[%emt 0:00:26]} Ne3 {[%emt 0:02:47]} 24. Qc1 {[%emt 0:06:15]} Qb7 {[%emt 0:03:29]} 25. Qd2 {[%emt 0:01:04]} g5 {[%emt 0:04:31]} 26. Bd6 {[%emt 0:01:08]} Qxf3 {[%emt 0:00:10]} 27. Nh3 {[%emt 0:00:26]} Nc4 {[%emt 0:02:19]} 28. Nxg5 {[%emt 0:01:24]} Nxd2 {[%emt 0:00:06]} 29. Nxf3 {[%emt 0:00:03]} Nxf3+ {[%emt 0:00:05]} 30. Kg2 {[%emt 0:00:24]} Re1 0-1

[Event "Budapest IM-B ONE WEEK Feb 2024"]
[Site "Budapest"]
[Date "2024.03.01"]
[Round "7.4"]
[White "Nemeth, Zoltan"]
[Black "Polyik, Peter"]
[Result "1/2-1/2"]
[ECO "D43"]
[WhiteElo "2194"]
[BlackElo "2289"]
[Annotator "TA"]
[PlyCount "23"]
[EventDate "2024.02.25"]
[EventType "tourn"]
[EventCountry "HUN"]
[SourceTitle "playchess.com"]
[Source "ChessBase"]
[SourceQuality "1"]
[TimeControl "5400+30"]

{[%evp 18,23,0,0,0,-2,0,-10]} 1. d4 {[%emt 0:00:30]} d5 {[%emt 0:02:34]} 2. c4 {[%emt 0:00:37]} e6 {[%emt 0:00:11]} 3. Nf3 {[%emt 0:00:24]} Nf6 {[%emt 0:00:08]} 4. Nc3 {[%emt 0:00:37]} c6 {[%emt 0:00:07]} 5. cxd5 {[%emt 0:00:53]} exd5 {[%emt 0:00:06]} 6. Bg5 {[%emt 0:00:09]} h6 {[%emt 0:01:23]} 7. Bh4 {[%emt 0:00:21]} Bf5 {[%emt 0:03:09]} 8. e3 {[%emt 0:00:12]} Be7 {[%emt 0:01:25]} 9. Bd3 {[%emt 0:00:24]} Bxd3 {[%emt 0:00:06]} 10. Qxd3 {[%emt 0:00:05] The position is equal.} Nbd7 {[%emt 0:00:19]} 11. O-O {[%emt 0:00:40]} O-O {[%emt 0:00:05]} 12. Ne5 {[%emt 0:02:40] An uneventful encounter.   OK:         	White=1     	Black=1} 1/2-1/2

[Event "Budapest IM-B ONE WEEK Feb 2024"]
[Site "Budapest"]
[Date "2024.03.01"]
[Round "7.5"]
[White "Matyassy, Lazar"]
[Black "Haszon, David"]
[Result "1/2-1/2"]
[ECO "B81"]
[WhiteElo "2176"]
[BlackElo "2245"]
[Annotator "TA"]
[PlyCount "76"]
[EventDate "2024.02.25"]
[EventType "tourn"]
[EventCountry "HUN"]
[SourceTitle "playchess.com"]
[Source "ChessBase"]
[SourceQuality "1"]
[TimeControl "5400+30"]

{[%evp 15,76,47,83,58,79,84,69,81,85,79,117,111,108,124,127,58,132,132,125,97,111,100,116,98,88,87,93,55,70,62,61,34,33,29,41,37,32,38,80,91,77,76,101,17,94,60,120,16,20,10,92,57,85,86,92,16,100,0,90,6,81,0,110]} 1. e4 {[%emt 0:00:09]} c5 {[%emt 0:01:22]} 2. Nf3 {[%emt 0:00:16]} e6 {[%emt 0:01:01]} 3. d4 {[%emt 0:00:42]} cxd4 {[%emt 0:00:06]} 4. Nxd4 {[%emt 0:00:04]} Nf6 {[%emt 0:00:14][%cal Bg8f6,Bf6d7,Bd7e5,Be5c6][%mdl 32]} 5. Nc3 {[%emt 0:00:07]} d6 {[%emt 0:02:43]} 6. g4 {[%emt 0:04:51][%cal Bg2g4,Bg4g5][%mdl 32]} a6 {[%emt 0:05:27]} 7. g5 {[%emt 0:05:03]} Nfd7 {[%emt 0:03:28]} 8. Bg2 {[%emt 0:00:15]} Be7 {[%emt 0:02:19][%cal Od7b6]} 9. h4 {[%emt 0:00:48]} Nc6 {[%emt 0:03:45]} 10. Be3 {[%emt 0:11:51]} Nde5 {[%emt 0:06:09]} 11. Qe2 {[%emt 0:05:45] Dodges Nc4. White is slightly better.} O-O {[%emt 0:01:06]} 12. O-O-O {[%emt 0:03:10]} Nxd4 {[%emt 0:05:13]} 13. Bxd4 {[%emt 0:05:58]} Bd7 {[%emt 0:09:34]} 14. f4 {[%emt 0:05:15]} Nc6 {[%emt 0:00:07]} 15. Be3 {[%emt 0:00:25]} b5 {[%emt 0:04:27]} ({Black should play} 15... Na5 $1 $14) 16. Kb1 $16 {[%emt 0:17:07]} Rb8 {[%emt 0:11:42]} 17. Qf2 {[%emt 0:10:34]} b4 {[%emt 0:11:48]} 18. Na4 {[%emt 0:02:29]} e5 {[%emt 0:07:03]} 19. b3 {[%emt 0:03:23]} exf4 {[%emt 0:04:37]} 20. Bxf4 {[%emt 0:00:31]} Qc7 {[%emt 0:01:23]} 21. Bh3 {[%emt 0:06:59]} Bxh3 {[%emt 0:00:51]} 22. Rxh3 {[%emt 0:00:03]} Ne5 {[%emt 0:00:45]} 23. Bxe5 {[%emt 0:01:28]} dxe5 {[%emt 0:01:11]} 24. Rhd3 {[%emt 0:00:08]} Rbd8 {[%emt 0:03:16] Against Rd7} 25. Rd5 {[%emt 0:00:48]} Rxd5 {[%emt 0:00:45]} 26. exd5 {[%emt 0:00:32]} f6 {[%emt 0:01:29]} 27. gxf6 {[%emt 0:03:26]} Rxf6 {[%emt 0:00:13]} 28. Qe2 {[%emt 0:00:38]} Bd6 {[%emt 0:02:32] [#]} 29. Qc4 {[%emt 0:05:26]} (29. Qxa6 $6 e4 $11) (29. Nb2 $1 $16) 29... Qd8 {[%emt 0:02:42]} ({Of course not} 29... Qxc4 $6 30. bxc4 e4 31. Re1 $16 (31. c5 Bg3 $16)) (29... h6 $11) 30. h5 {[%emt 0:01:43][%cal Oa4c5]} h6 {[%emt 0:02:14]} ({Better is} 30... Qc7 $14) 31. Nb2 {[%emt 0:02:15]} ({White should try} 31. Nc5 $16) 31... Qe8 $11 {[%emt 0:00:12]} 32. Qe2 {[%emt 0:02:20][%cal Ob2c4]} Qf8 {[%emt 0:01:23]} (32... e4 $11) 33. Nc4 {[%emt 0:01:03][%cal Oc4d2]} Rf2 {[%emt 0:01:04]} 34. Qg4 {[%emt 0:00:11] [#] Qe6+ would now be deadly.} Kh8 {[%emt 0:00:56]} 35. Qg6 {[%emt 0:00:42]} (35. Rc1 $16) 35... Rf6 {[%emt 0:00:16]} (35... Rf1 $1 $11 36. Qd3 (36. Rxf1 Qxf1+ 37. Kb2 Qe1 $11) 36... Rxd1+ 37. Qxd1 e4) 36. Qg4 {[%emt 0:00:41] White is much more active.} (36. Qg2 $16) 36... Rf4 {[%emt 0:02:48]} (36... Rf2 $1 $11 {remains equal.}) 37. Qe6 {[%emt 0:00:10]} (37. Qh3 $16) 37... Rf6 {[%emt 0:00:33]} (37... Rf1 $1 $11 38. Rxf1 Qxf1+ 39. Kb2 Qf2) 38. Qg4 {[%emt 0:00:06]} Rf4 {[%emt 0:00:10] Weighted Error Value: White=0.31/Black=0.28 (precise) .  Mistake:       	White=5     	Black=7      Inaccurate:     	White=4     	Black=2      OK:         	White=10    	Black=11     Best:        	White=1     	---} 1/2-1/2

[Event "Budapest IM-B ONE WEEK Feb 2024"]
[Site "Budapest"]
[Date "2024.03.01"]
[Round "8.2"]
[White "Polyik, Peter"]
[Black "Matyassy, Lazar"]
[Result "1-0"]
[ECO "E01"]
[WhiteElo "2289"]
[BlackElo "2176"]
[Annotator "TA"]
[PlyCount "53"]
[EventDate "2024.02.25"]
[EventType "tourn"]
[EventCountry "HUN"]
[SourceTitle "playchess.com"]
[Source "ChessBase"]
[SourceQuality "1"]
[TimeControl "5400+30"]

{[%evp 17,53,15,3,8,37,26,26,34,38,27,23,22,135,129,134,127,115,108,294,241,239,239,280,286,300,310,316,316,291,287,297,293,288,264,414,422,466,462]} 1. d4 {[%emt 0:09:30]} Nf6 {[%emt 0:00:06]} 2. c4 {[%emt 0:00:08]} e6 {[%emt 0:00:03]} 3. g3 {[%emt 0:00:06]} d5 {[%emt 0:00:07]} 4. Bg2 {[%emt 0:00:06]} Bb4+ {[%emt 0:00:06]} 5. Nd2 {[%emt 0:00:18]} O-O {[%emt 0:00:25]} 6. Ngf3 {[%emt 0:00:20]} b6 {[%emt 0:00:21]} 7. O-O {[%emt 0:01:03]} Bb7 {[%emt 0:00:39]} 8. a3 {[%emt 0:00:27]} Be7 {[%emt 0:00:06]} 9. cxd5 {[%emt 0:00:45]} exd5 {[%emt 0:00:05]} 10. b4 {[%emt 0:00:23]} c5 {[%emt 0:00:09]} 11. bxc5 {[%emt 0:00:21]} bxc5 {[%emt 0:00:05]} 12. Rb1 {[%emt 0:01:45] Weiß hat minimalen Vorteil.} Ba6 {[%emt 0:05:26]} 13. Re1 {[%emt 0:06:41]} Re8 {[%emt 0:13:07]} 14. Bb2 {[%emt 0:23:19]} c4 {[%emt 0:18:18]} (14... Nbd7 $11 {bleibt in der Remisbreite.}) 15. Ne5 $16 {[%emt 0:10:41]} Qc8 {[%emt 0:06:14] [#]} 16. Qa4 $1 {[%emt 0:02:26]} Bb7 {[%emt 0:14:02]} 17. Ba1 {[%emt 0:08:38][%cal Rd2c4] Weiß steht deutlich aktiver. Die schwarzen Türme stehen passiv.} Nc6 $2 {[%emt 0:05:17] [#]} (17... c3 $16 {war einen Versuch wert.}) 18. Ndxc4 $1 {[%emt 0:02:02][%mdl 512]} Nxe5 {[%emt 0:01:06]} 19. Nxe5 {[%emt 0:01:31] Droht stark Rec1.} (19. dxe5 Bc6 20. Qa5 dxc4 $16) 19... Ba6 {[%emt 0:03:42]} 20. Rec1 {[%emt 0:05:04]} Qe6 {[%emt 0:00:10]} 21. Rc6 {[%emt 0:01:19]} Qf5 {[%emt 0:00:25] [#]} 22. e4 $1 {[%emt 0:00:38]} Nxe4 {[%emt 0:00:16] Und ...Rab8 würde nun gewinnen.} 23. Qxa6 {[%emt 0:00:06]} ({Minderwertig wäre} 23. Rxa6 Qxf2+ 24. Kh1 Qe3 $11) 23... Qxf2+ {[%emt 0:09:05]} 24. Kh1 {[%emt 0:00:02] Droht Bxe4 und aus.} Qe3 {[%emt 0:04:09] ( -> ...Nf2+)} 25. Ng4 {[%emt 0:01:53]} Qg5 {[%emt 0:00:08]} (25... Qxa3 $142 26. Qxa3 Bxa3) 26. Bxe4 $18 {[%emt 0:02:13]} dxe4 {[%emt 0:00:05]} 27. Ne5 {[%emt 0:00:23] Schwarz wurde aus der Eröffnung heraus überspielt.   Gewichteter Fehlerwert: Weiß=0.06 (makellos) /Schwarz=0.43.  Verlustzug:     	---       	Schwarz=1     Fehler:       	---       	Schwarz=2     Ungenau:       	---       	Schwarz=1     OK:         	Weiß=7     	Schwarz=5     Bester:       	Weiß=3     	---        Stark:        	Weiß=2     	---} 1-0

[Event "Budapest IM-B ONE WEEK Feb 2024"]
[Site "Budapest"]
[Date "2024.03.01"]
[Round "8.3"]
[White "Golis, Wiktor"]
[Black "Nemeth, Zoltan"]
[Result "1-0"]
[ECO "C43"]
[WhiteElo "2123"]
[BlackElo "2194"]
[Annotator "RC"]
[PlyCount "53"]
[EventDate "2024.02.25"]
[EventType "tourn"]
[EventCountry "HUN"]
[SourceTitle "playchess.com"]
[Source "ChessBase"]
[SourceQuality "1"]
[TimeControl "5400+30"]

1. e4 {[%emt 0:00:06]} e5 {[%emt 0:00:17]} 2. Nf3 {[%emt 0:00:08]} Nf6 {[%emt 0:00:05]} 3. d4 {[%emt 0:00:23]} Nxe4 {[%emt 0:00:07]} 4. dxe5 {[%emt 0:00:06]} d5 {[%emt 0:00:22]} 5. Nbd2 {[%emt 0:00:14]} Nxd2 {[%emt 0:02:54]} 6. Bxd2 {[%emt 0:00:09]} Be7 {[%emt 0:00:01]} 7. Bd3 {[%emt 0:00:59]} Bg4 {[%emt 0:01:26]} 8. h3 {[%emt 0:00:33]} Bh5 {[%emt 0:00:04]} 9. c3 {[%emt 0:00:39]} Nc6 {[%emt 0:04:00]} 10. Bf4 {[%emt 0:09:36]} Qd7 {[%emt 0:02:45]} 11. Qc2 {[%emt 0:03:25]} Bg6 {[%emt 0:02:29]} 12. O-O-O {[%emt 0:07:01]} O-O-O {[%emt 0:00:15]} 13. Rhe1 {[%emt 0:09:09]} Bxd3 {[%emt 0:04:20]} 14. Qxd3 {[%emt 0:00:57]} h6 {[%emt 0:00:29]} 15. Bh2 {[%emt 0:04:17]} Bc5 {[%emt 0:02:58]} 16. Re2 {[%emt 0:07:37]} Qe6 {[%emt 0:00:56]} 17. Kb1 {[%emt 0:14:46]} d4 {[%emt 0:05:06]} 18. cxd4 {[%emt 0:07:17]} Nxd4 {[%emt 0:06:23]} 19. Nxd4 {[%emt 0:05:09]} Rxd4 {[%emt 0:00:07]} 20. Qc2 {[%emt 0:00:04]} Rxd1+ {[%emt 0:00:46]} 21. Qxd1 {[%emt 0:00:01]} Qg6+ {[%emt 0:00:47]} 22. Rc2 {[%emt 0:03:30]} Rd8 {[%emt 0:08:48]} 23. Qc1 {[%emt 0:00:19]} Bxf2 {[%emt 0:04:46]} 24. Ka1 {[%emt 0:01:05]} Bb6 {[%emt 0:04:09]} 25. e6 {[%emt 0:01:16]} Kb8 {[%emt 0:15:45]} 26. Rxc7 {[%emt 0:00:25]} a6 {[%emt 0:00:01]} 27. e7 {[%emt 0:00:36]} 1-0

[Event "Budapest IM-B ONE WEEK Feb 2024"]
[Site "Budapest"]
[Date "2024.03.01"]
[Round "8.4"]
[White "Mouhamad, Joachim"]
[Black "Poysti, Nathanael"]
[Result "0-1"]
[ECO "B11"]
[WhiteElo "2316"]
[BlackElo "2163"]
[Annotator "RC"]
[PlyCount "106"]
[EventDate "2024.02.25"]
[EventType "tourn"]
[EventCountry "HUN"]
[SourceTitle "playchess.com"]
[Source "ChessBase"]
[SourceQuality "1"]
[TimeControl "5400+30"]

1. e4 {[%emt 0:00:05]} c6 {[%emt 0:00:03]} 2. Nf3 {[%emt 0:02:10]} d5 {[%emt 0:00:02]} 3. Nc3 {[%emt 0:00:10]} Bg4 {[%emt 0:00:04]} 4. h3 {[%emt 0:00:18]} Bxf3 {[%emt 0:00:02]} 5. Qxf3 {[%emt 0:00:11]} e6 {[%emt 0:00:06]} 6. Be2 {[%emt 0:00:11]} Bc5 {[%emt 0:00:16]} 7. O-O {[%emt 0:00:18]} Nd7 {[%emt 0:00:44]} 8. exd5 {[%emt 0:00:16]} exd5 {[%emt 0:05:43]} 9. Re1 {[%emt 0:03:41]} Ne7 {[%emt 0:00:19]} 10. Na4 {[%emt 0:00:24]} Bd6 {[%emt 0:00:23]} 11. d4 {[%emt 0:00:21]} O-O {[%emt 0:00:03]} 12. Bd3 {[%emt 0:00:46]} Re8 {[%emt 0:17:57]} 13. Bd2 {[%emt 0:00:08]} Nf8 {[%emt 0:00:26]} 14. g3 {[%emt 0:01:12]} Ne6 {[%emt 0:00:17]} 15. Be3 {[%emt 0:05:46]} Qd7 {[%emt 0:04:14]} 16. Kg2 {[%emt 0:01:12]} Rf8 {[%emt 0:01:30]} 17. Nc5 {[%emt 0:08:15]} Bxc5 {[%emt 0:07:32]} 18. dxc5 {[%emt 0:00:09]} d4 {[%emt 0:00:21]} 19. Bd2 {[%emt 0:01:54]} Nxc5 {[%emt 0:08:36]} 20. Bb4 {[%emt 0:04:39]} b6 {[%emt 0:04:17]} 21. Bxc5 {[%emt 0:01:33]} bxc5 {[%emt 0:00:07]} 22. Re5 {[%emt 0:04:20]} Nd5 {[%emt 0:00:37]} 23. Rae1 {[%emt 0:02:38]} Qd6 {[%emt 0:07:51]} 24. h4 {[%emt 0:23:52]} g6 {[%emt 0:03:36]} 25. h5 {[%emt 0:01:42]} Rad8 {[%emt 0:07:04]} 26. Bc4 {[%emt 0:04:53]} Ne3+ {[%emt 0:00:45]} 27. R1xe3 {[%emt 0:07:01]} dxe3 {[%emt 0:00:03]} 28. Qxe3 {[%emt 0:01:23]} Qd4 {[%emt 0:02:56]} 29. Qxd4 {[%emt 0:05:16]} cxd4 {[%emt 0:01:09]} 30. Re7 {[%emt 0:00:25]} Kg7 {[%emt 0:07:42]} 31. hxg6 {[%emt 0:01:02]} hxg6 {[%emt 0:00:12]} 32. Rxa7 {[%emt 0:00:13]} Ra8 {[%emt 0:01:41]} 33. Rc7 {[%emt 0:00:19]} Rac8 {[%emt 0:00:24]} 34. Ra7 {[%emt 0:00:46]} Ra8 {[%emt 0:00:01]} 35. Rc7 {[%emt 0:03:19]} Rac8 {[%emt 0:00:02]} 36. Rxc8 {[%emt 0:00:30]} Rxc8 {[%emt 0:00:02]} 37. Kf3 {[%emt 0:00:11]} f5 {[%emt 0:01:45]} 38. Ke2 {[%emt 0:00:09]} Kf6 {[%emt 0:02:13]} 39. Kd3 {[%emt 0:00:01]} c5 {[%emt 0:00:26]} 40. a4 {[%emt 0:03:58]} Ra8 {[%emt 0:01:18]} 41. b3 {[%emt 0:00:02]} Ra7 {[%emt 0:02:10]} 42. Bd5 {[%emt 0:01:33]} Ke5 {[%emt 0:00:18]} 43. Kc4 {[%emt 0:01:15]} Kd6 {[%emt 0:05:00]} 44. f4 {[%emt 0:00:02]} Rh7 {[%emt 0:01:43]} 45. a5 {[%emt 0:07:52]} Rh2 {[%emt 0:04:36]} 46. a6 {[%emt 0:05:25]} Rxc2+ {[%emt 0:00:11]} 47. Kd3 {[%emt 0:00:08]} Ra2 {[%emt 0:01:39]} 48. Bf7 {[%emt 0:01:45]} Rxa6 {[%emt 0:01:49]} 49. Bxg6 {[%emt 0:00:06]} Ke6 {[%emt 0:00:29]} 50. Bh5 {[%emt 0:00:28]} Ra1 {[%emt 0:01:57]} 51. g4 {[%emt 0:00:53]} Rc1 {[%emt 0:01:46]} 52. gxf5+ {[%emt 0:00:33]} Kxf5 {[%emt 0:00:04]} 53. Bf7 {[%emt 0:00:18]} Rc3+ 0-1

[Event "Budapest IM-B ONE WEEK Feb 2024"]
[Site "Budapest"]
[Date "2024.03.01"]
[Round "8.5"]
[White "Velikic, Adela"]
[Black "Krizsany, Laszlo"]
[Result "0-1"]
[ECO "B03"]
[WhiteElo "2266"]
[BlackElo "2346"]
[Annotator "TA"]
[PlyCount "68"]
[EventDate "2024.02.25"]
[EventType "tourn"]
[EventCountry "HUN"]
[SourceTitle "playchess.com"]
[Source "ChessBase"]
[SourceQuality "1"]
[TimeControl "5400+30"]

{[%evp 20,68,72,72,75,43,41,41,49,0,45,0,19,9,16,-54,-58,-69,-81,-74,-75,-78,-77,-79,-71,-271,-256,-268,-272,-260,-223,-238,-182,-222,-213,-208,-212,-229,-220,-221,-223,-308,-318,-322,-329,-322,-329,-832,-445,-29997,-29998]} 1. e4 {[%emt 0:00:03][%cal Be2e4,Be4e5][%mdl 32]} Nf6 {[%emt 0:03:45]} 2. e5 {[%emt 0:00:11]} Nd5 {[%emt 0:00:05]} 3. c4 {[%emt 0:00:12]} Nb6 {[%emt 0:00:04]} 4. d4 {[%emt 0:00:07]} d6 {[%emt 0:00:05]} 5. f4 {[%emt 0:00:11]} dxe5 {[%emt 0:05:05]} 6. fxe5 {[%emt 0:00:09]} Nc6 {[%emt 0:01:02]} 7. Be3 {[%emt 0:00:15]} g6 {[%emt 0:04:38]} 8. Be2 {[%emt 0:10:18]} Bg7 {[%emt 0:00:14]} 9. Nf3 {[%emt 0:00:13]} O-O {[%emt 0:00:28]} 10. Nc3 {[%emt 0:02:19]} Bg4 {[%emt 0:03:47]} 11. O-O {[%emt 0:00:47]} Qd7 {[%emt 0:02:51]} 12. c5 {[%emt 0:19:07]} Nd5 {[%emt 0:01:34]} 13. Nxd5 {[%emt 0:00:15]} Qxd5 {[%emt 0:00:15] White is slightly better.} 14. h3 {[%emt 0:00:33]} (14. Qd2 $14 {might be stronger.}) 14... Bf5 {[%emt 0:05:54]} 15. Rc1 {[%emt 0:12:00]} (15. Qd2 $5) 15... Rad8 {[%emt 0:01:55]} 16. Bc4 {[%emt 0:08:13]} Qd7 {[%emt 0:02:13]} 17. Ng5 {[%emt 0:01:08]} (17. Qd2 $11) 17... Bh6 $1 $15 {[%emt 0:12:41][%cal Rc6d4]} (17... Nxd4 18. c6 bxc6 (18... Nxc6 19. Nxf7 Rc8 20. Qxd7 $18) 19. g4 $11) 18. Qe1 {[%emt 0:35:44][%cal Oe5e6]} Bxg5 $1 {[%emt 0:05:59]} ({Much weaker is} 18... Nxd4 19. c6 bxc6 (19... Nxc6 $2 {loses.} 20. e6 $18) 20. Qh4 Bxg5 21. Bxg5 $11) 19. Bxg5 {[%emt 0:00:05] aiming for d5.} Be6 {[%emt 0:00:12]} (19... Qxd4+ {is more complex.} 20. Kh2 Bd3 21. Rf4 Qxb2 22. Bb3 Bf5) 20. Rf4 {[%emt 0:07:16]} Nxd4 {[%emt 0:02:58]} 21. Bf1 {[%emt 0:00:30]} Bxa2 {[%emt 0:03:55] Strongly threatening ...Ne6.} 22. Kh2 $2 {[%emt 0:00:52]} ({Don't blunder} 22. Rd1 $2 Nf3+ 23. Rxf3 Qxd1 $19) (22. Bh6 $17 {is a better defense.}) 22... Ne6 $19 {[%emt 0:00:39][%csl LRf4,LRg5]} 23. c6 {[%emt 0:00:58]} bxc6 {[%emt 0:06:57]} 24. Ra4 {[%emt 0:00:24]} Bb3 {[%emt 0:01:59]} 25. Ra3 {[%emt 0:00:01]} Rb8 {[%emt 0:04:29]} 26. Bh6 {[%emt 0:00:21]} Rfd8 {[%emt 0:00:11]} 27. Qc3 {[%emt 0:01:11]} Qd5 {[%emt 0:02:50]} 28. Rxa7 {[%emt 0:00:27]} Qe4 {[%emt 0:02:33] Inhibits Be3. Threatens to win with ...g5.} 29. Re1 {[%emt 0:00:34]} Qh4 {[%emt 0:00:37]} 30. Be3 {[%emt 0:00:17]} Bd5 {[%emt 0:00:27]} 31. Ra3 {[%emt 0:00:34] [#]} Rxb2 $3 {[%emt 0:02:14][%mdl 512]} 32. Rd1 {[%emt 0:00:31]} (32. Rea1 Rdb8) 32... Rdb8 {[%emt 0:00:34] White must now prevent ...Qe4.} 33. Ra5 $2 {[%emt 0:00:37]} (33. Bc1 R2b3 34. Qe1 Qxe1 35. Rxe1) 33... Ng5 {[%emt 0:03:14]} 34. Kg1 {[%emt 0:00:28] [#]} (34. Bxg5 $19 Qxg5 35. Qg3 Qxg3+ 36. Kxg3) 34... Nxh3+ $1 {[%emt 0:00:47] White did not feel at home in the position after the opening.   Weighted Error Value: White=0.61/Black=0.34.  Loses game:     	White=1     	---        Mistake:       	White=4     	---        Inaccurate:     	White=3     	Black=2      OK:         	White=5     	Black=12     Best:        	---       	Black=1      Strong:       	---       	Black=2} 0-1